[Event "Biel Master Tournament 2019"]
[Site "Biel"]
[Date "2019.07.22"]
[Round "1.6"]
[White "Iturrizaga Bonelli, Eduardo"]
[Black "Ghazarian, Kirk"]
[Result "1-0"]
[ECO "E01"]
[WhiteElo "2625"]
[BlackElo "2243"]
[Annotator "ChessBase"]
[PlyCount "51"]
[EventDate "2019.07.20"]
[EventType "swiss"]
[EventCountry "SUI"]
[SourceTitle "playchess.com"]
[Source "ChessBase"]
[SourceQuality "1"]
[TimeControl "40/5400+30:1800+30"]

1. c4 {[%emt 0:14:28]} e6 {[%emt 0:00:32]} 2. Nf3 {[%emt 0:01:08]} d5 {[%emt 0:00:35]} 3. b3 {[%emt 0:00:24]} Nf6 {[%emt 0:00:46]} 4. Bb2 {[%emt 0:00:06]} c6 {[%emt 0:00:31]} 5. g3 {[%emt 0:00:53]} Nbd7 {[%emt 0:00:33]} 6. Bg2 {[%emt 0:00:08]} Bd6 {[%emt 0:00:57]} 7. d4 {[%emt 0:00:12]} b6 {[%emt 0:04:08]} 8. O-O {[%emt 0:00:12]} O-O {[%emt 0:01:10]} 9. Nc3 {[%emt 0:00:07]} Bb7 {[%emt 0:02:45]} 10. Nd2 {[%emt 0:04:31]} Re8 {[%emt 0:27:21]} 11. e4 {[%emt 0:00:19]} dxe4 {[%emt 0:03:14]} 12. Ndxe4 {[%emt 0:00:05]} Nxe4 {[%emt 0:00:07]} 13. Nxe4 {[%emt 0:00:06]} Bf8 {[%emt 0:00:16]} 14. Qc2 {[%emt 0:06:57]} Rc8 {[%emt 0:11:54]} 15. Rad1 {[%emt 0:00:24]} h6 {[%emt 0:03:00]} 16. f4 {[%emt 0:03:42]} Qc7 {[%emt 0:00:28]} 17. g4 {[%emt 0:01:10]} Rcd8 {[%emt 0:11:13]} 18. h4 {[%emt 0:04:00]} c5 {[%emt 0:04:25]} 19. d5 {[%emt 0:03:36]} exd5 {[%emt 0:00:07]} 20. cxd5 {[%emt 0:00:07]} Ba6 {[%emt 0:01:27]} 21. d6 {[%emt 0:05:30]} Qc8 {[%emt 0:00:27]} 22. Rfe1 {[%emt 0:01:46]} Bb7 {[%emt 0:01:30]} 23. g5 {[%emt 0:01:14]} h5 {[%emt 0:02:27]} 24. g6 {[%emt 0:01:28]} fxg6 {[%emt 0:02:14]} 25. Ng5 {[%emt 0:00:43]} Rxe1+ {[%emt 0:05:00]} 26. Rxe1 {[%emt 0:00:14]} 1-0

[Event "Biel Master Tournament 2019"]
[Site "Biel"]
[Date "2019.07.22"]
[Round "1.7"]
[White "Piasetski, Leon"]
[Black "Martirosyan, Haik M."]
[Result "0-1"]
[ECO "A07"]
[WhiteElo "2229"]
[BlackElo "2619"]
[Annotator "ChessBase"]
[PlyCount "70"]
[EventDate "2019.07.20"]
[EventType "swiss"]
[EventCountry "SUI"]
[SourceTitle "playchess.com"]
[Source "ChessBase"]
[SourceQuality "1"]
[TimeControl "40/5400+30:1800+30"]

1. Nf3 {[%emt 0:05:30]} d5 {[%emt 0:00:20]} 2. g3 {[%emt 0:01:48]} Nc6 {[%emt 0:00:41]} 3. Bg2 {[%emt 0:07:40]} e5 {[%emt 0:00:28]} 4. d3 {[%emt 0:00:17]} f6 {[%emt 0:02:11]} 5. Nc3 {[%emt 0:02:47]} Bb4 {[%emt 0:09:51]} 6. a3 {[%emt 0:09:02]} Bxc3+ {[%emt 0:00:44]} 7. bxc3 {[%emt 0:00:06]} Nge7 {[%emt 0:00:23]} 8. Rb1 {[%emt 0:00:23]} b6 {[%emt 0:04:11]} 9. Nd2 {[%emt 0:04:06]} Be6 {[%emt 0:01:25]} 10. e4 {[%emt 0:04:06]} O-O {[%emt 0:00:58]} 11. O-O {[%emt 0:01:08]} Qd7 {[%emt 0:01:33]} 12. exd5 {[%emt 0:09:03]} Nxd5 {[%emt 0:02:28]} 13. Ne4 {[%emt 0:01:21]} Bh3 {[%emt 0:04:21]} 14. Bxh3 {[%emt 0:15:56]} Qxh3 {[%emt 0:00:21]} 15. c4 {[%emt 0:00:06]} Nde7 {[%emt 0:00:46]} 16. f4 {[%emt 0:01:41]} exf4 {[%emt 0:03:29]} 17. Bxf4 {[%emt 0:02:12]} Qd7 {[%emt 0:00:12]} 18. Kh1 {[%emt 0:02:38]} Nd4 {[%emt 0:02:00]} 19. Be3 {[%emt 0:02:09]} Rad8 {[%emt 0:04:28]} 20. Bxd4 {[%emt 0:05:09]} Qxd4 {[%emt 0:00:07]} 21. Qe2 {[%emt 0:00:13]} Qd7 {[%emt 0:02:12]} 22. Rbe1 {[%emt 0:01:47]} Nc6 {[%emt 0:01:29]} 23. Qg2 {[%emt 0:01:46]} Ne5 {[%emt 0:01:43]} 24. Nc3 {[%emt 0:02:57]} c6 {[%emt 0:01:42]} 25. a4 {[%emt 0:02:07]} h6 {[%emt 0:04:19]} 26. a5 {[%emt 0:02:38]} b5 {[%emt 0:02:22]} 27. cxb5 {[%emt 0:00:12]} cxb5 {[%emt 0:00:05]} 28. a6 {[%emt 0:00:35]} b4 {[%emt 0:03:23]} 29. Ne4 {[%emt 0:02:43]} Qc6 {[%emt 0:01:19]} 30. Rb1 {[%emt 0:01:27]} Rd4 {[%emt 0:02:38]} 31. Rf4 {[%emt 0:03:21]} Rfd8 {[%emt 0:02:54]} 32. Nf2 {[%emt 0:03:23]} Qxc2 {[%emt 0:05:29]} 33. Rxb4 {[%emt 0:00:12]} Rxf4 {[%emt 0:01:25]} 34. gxf4 {[%emt 0:00:56]} Nxd3 {[%emt 0:00:35]} 35. Nxd3 {[%emt 0:00:49]} Qxd3 {[%emt 0:00:17]} 0-1

[Event "Biel Master Tournament 2019"]
[Site "Biel"]
[Date "2019.07.22"]
[Round "1.8"]
[White "Donchenko, Alexander"]
[Black "Hill, Alistair"]
[Result "1-0"]
[ECO "E60"]
[WhiteElo "2615"]
[BlackElo "2224"]
[Annotator "ChessBase"]
[PlyCount "59"]
[EventDate "2019.07.20"]
[EventType "swiss"]
[EventCountry "SUI"]
[SourceTitle "playchess.com"]
[Source "ChessBase"]
[SourceQuality "1"]
[TimeControl "40/5400+30:1800+30"]

1. d4 {[%emt 0:01:21]} Nf6 {[%emt 0:00:00]} 2. c4 {[%emt 0:00:38]} g6 {[%emt 0:00:07]} 3. g3 {[%emt 0:00:43]} Bg7 {[%emt 0:02:46]} 4. Bg2 {[%emt 0:01:09]} c5 {[%emt 0:01:14]} 5. dxc5 {[%emt 0:00:39]} Na6 {[%emt 0:04:13]} 6. Nc3 {[%emt 0:02:04]} Nxc5 {[%emt 0:01:21]} 7. Nh3 {[%emt 0:02:57]} O-O {[%emt 0:00:31]} 8. O-O {[%emt 0:03:04]} d6 {[%emt 0:01:26]} 9. Nf4 {[%emt 0:04:54]} Nfd7 {[%emt 0:06:59]} 10. Qd2 {[%emt 0:05:55]} a5 {[%emt 0:08:42]} 11. b3 {[%emt 0:09:28]} Ne5 {[%emt 0:10:53]} 12. Ba3 {[%emt 0:03:36]} Nc6 {[%emt 0:14:12]} 13. Rfd1 {[%emt 0:11:40]} Bf5 {[%emt 0:03:35]} 14. Rac1 {[%emt 0:01:40]} Bh6 {[%emt 0:11:08]} 15. e3 {[%emt 0:05:34]} Bg4 {[%emt 0:00:03]} 16. Nfe2 {[%emt 0:03:28]} Nb4 {[%emt 0:06:47]} 17. h3 {[%emt 0:02:17]} Bd7 {[%emt 0:01:51]} 18. Bxb4 {[%emt 0:02:59]} axb4 {[%emt 0:00:03]} 19. Nd5 {[%emt 0:00:07]} Bc6 {[%emt 0:06:36]} 20. Nxb4 {[%emt 0:01:33]} Bxg2 {[%emt 0:00:03]} 21. Kxg2 {[%emt 0:00:06]} Qa5 {[%emt 0:00:30]} 22. Rc2 {[%emt 0:02:57]} Ne4 {[%emt 0:05:38]} 23. Qe1 {[%emt 0:03:04]} Qh5 {[%emt 0:03:31]} 24. Nf4 {[%emt 0:01:15]} Bxf4 {[%emt 0:00:32]} 25. exf4 {[%emt 0:00:06]} f5 {[%emt 0:03:00]} 26. f3 {[%emt 0:02:32]} e5 {[%emt 0:02:27]} 27. fxe4 {[%emt 0:01:55]} exf4 {[%emt 0:00:03]} 28. gxf4 {[%emt 0:00:38]} fxe4 {[%emt 0:00:42]} 29. Qe2 {[%emt 0:00:32]} Qh6 {[%emt 0:01:57]} 30. Nd5 {[%emt 0:00:09]} 1-0

[Event "Biel Master Tournament 2019"]
[Site "Biel"]
[Date "2019.07.22"]
[Round "1.9"]
[White "Lukin, Elisha"]
[Black "Erdos, Viktor"]
[Result "0-1"]
[ECO "D85"]
[WhiteElo "2217"]
[BlackElo "2603"]
[Annotator "ChessBase"]
[PlyCount "78"]
[EventDate "2019.07.20"]
[EventType "swiss"]
[EventCountry "SUI"]
[SourceTitle "playchess.com"]
[Source "ChessBase"]
[SourceQuality "1"]
[TimeControl "40/5400+30:1800+30"]

1. d4 {[%emt 0:06:51]} Nf6 {[%emt 0:05:22]} 2. c4 {[%emt 0:00:13]} g6 {[%emt 0:00:23]} 3. Nc3 {[%emt 0:00:07]} d5 {[%emt 0:00:04]} 4. cxd5 {[%emt 0:00:43]} Nxd5 {[%emt 0:00:06]} 5. e4 {[%emt 0:00:04]} Nxc3 {[%emt 0:00:04]} 6. bxc3 {[%emt 0:00:04]} Bg7 {[%emt 0:00:05]} 7. Nf3 {[%emt 0:00:06]} c5 {[%emt 0:00:11]} 8. Be3 {[%emt 0:00:06]} Qa5 {[%emt 0:00:29]} 9. Qd2 {[%emt 0:00:06]} O-O {[%emt 0:01:30]} 10. Rc1 {[%emt 0:00:07]} Nd7 {[%emt 0:00:10]} 11. Bd3 {[%emt 0:04:21]} e5 {[%emt 0:04:40]} 12. d5 {[%emt 0:01:53]} b5 {[%emt 0:02:45]} 13. c4 {[%emt 0:03:26]} b4 {[%emt 0:00:37]} 14. h4 {[%emt 0:02:26]} h5 {[%emt 0:03:18]} 15. O-O {[%emt 0:14:12]} Qc7 {[%emt 0:07:32]} 16. Ng5 {[%emt 0:02:04]} a5 {[%emt 0:00:55]} 17. g3 {[%emt 0:02:02]} Nf6 {[%emt 0:07:05]} 18. f4 {[%emt 0:04:00]} Ng4 {[%emt 0:01:36]} 19. f5 {[%emt 0:01:46]} Bh6 {[%emt 0:04:59]} 20. Be2 {[%emt 0:24:54]} Nxe3 {[%emt 0:01:20]} 21. Qxe3 {[%emt 0:00:02]} f6 {[%emt 0:02:32]} 22. fxg6 {[%emt 0:00:32]} Bh3 {[%emt 0:09:53]} 23. Rfd1 {[%emt 0:01:12]} fxg5 {[%emt 0:12:41]} 24. hxg5 {[%emt 0:01:55]} Bg7 {[%emt 0:00:09]} 25. Bxh5 {[%emt 0:00:53]} Qc8 {[%emt 0:21:06]} 26. Qe2 {[%emt 0:03:48]} Ra6 {[%emt 0:01:02]} 27. Kh2 {[%emt 0:00:39]} Bd7 {[%emt 0:04:01]} 28. Rf1 {[%emt 0:00:22]} Qd8 {[%emt 0:01:30]} 29. Rf7 {[%emt 0:08:31]} Qxg5 {[%emt 0:01:16]} 30. Rcf1 {[%emt 0:01:04]} Rxf7 {[%emt 0:00:48]} 31. Rxf7 {[%emt 0:00:51]} Be8 {[%emt 0:00:10]} 32. Qf3 {[%emt 0:00:57]} Rf6 {[%emt 0:00:36]} 33. Rxf6 {[%emt 0:00:35]} Bxf6 {[%emt 0:00:14]} 34. d6 {[%emt 0:00:18]} Kg7 {[%emt 0:00:51]} 35. Qd1 {[%emt 0:00:35]} Bd7 {[%emt 0:01:54]} 36. Kg2 {[%emt 0:01:10]} Kh6 {[%emt 0:02:57]} 37. Be2 {[%emt 0:04:49]} Qe3 {[%emt 0:01:17]} 38. Kh2 {[%emt 0:03:41]} Qf2+ {[%emt 0:00:13]} 39. Kh1 {[%emt 0:00:07]} Qxg3 {[%emt 0:00:25]} 0-1

[Event "Biel Master Tournament 2019"]
[Site "Biel"]
[Date "2019.07.22"]
[Round "1.10"]
[White "Tabatabaei, M.amin"]
[Black "Manish Anto Cristiano F"]
[Result "1-0"]
[ECO "A08"]
[WhiteElo "2601"]
[BlackElo "2208"]
[Annotator "ChessBase"]
[PlyCount "57"]
[EventDate "2019.07.20"]
[EventType "swiss"]
[EventCountry "SUI"]
[SourceTitle "playchess.com"]
[Source "ChessBase"]
[SourceQuality "1"]
[TimeControl "40/5400+30:1800+30"]

1. g3 {[%emt 0:00:29]} d5 {[%emt 0:00:07]} 2. Nf3 {[%emt 0:00:20]} Nf6 {[%emt 0:00:16]} 3. Bg2 {[%emt 0:00:06]} c5 {[%emt 0:00:20]} 4. O-O {[%emt 0:00:21]} Nc6 {[%emt 0:00:21]} 5. d3 {[%emt 0:00:36]} e6 {[%emt 0:01:32]} 6. Nbd2 {[%emt 0:00:26]} Bd6 {[%emt 0:01:27]} 7. e4 {[%emt 0:00:31]} O-O {[%emt 0:01:33]} 8. Re1 {[%emt 0:01:18]} Bc7 {[%emt 0:01:27]} 9. c3 {[%emt 0:02:49]} e5 {[%emt 0:04:26]} 10. exd5 {[%emt 0:06:12]} Nxd5 {[%emt 0:06:52]} 11. Nc4 {[%emt 0:01:17]} Re8 {[%emt 0:02:47]} 12. Qb3 {[%emt 0:01:19]} h6 {[%emt 0:15:28]} 13. Qb5 {[%emt 0:20:43]} Nb6 {[%emt 0:06:07]} 14. Be3 {[%emt 0:07:09]} Qxd3 {[%emt 0:05:26]} 15. Na3 {[%emt 0:02:56]} Qh7 {[%emt 0:07:07]} 16. Qxc5 {[%emt 0:07:32]} a6 {[%emt 0:03:10]} 17. Nd2 {[%emt 0:00:52]} Na4 {[%emt 0:10:24]} 18. Qc4 {[%emt 0:01:51]} Nxb2 {[%emt 0:02:13]} 19. Qb3 {[%emt 0:00:45]} Nd3 {[%emt 0:01:37]} 20. Be4 {[%emt 0:00:33]} Bf5 {[%emt 0:02:12]} 21. Bxd3 {[%emt 0:00:14]} Bxd3 {[%emt 0:00:30]} 22. Qxb7 {[%emt 0:00:06]} Rac8 {[%emt 0:11:54]} 23. Qxc6 {[%emt 0:00:29]} Ba5 {[%emt 0:00:37]} 24. Qa4 {[%emt 0:07:07]} Bxc3 {[%emt 0:03:33]} 25. Rac1 {[%emt 0:00:06]} Red8 {[%emt 0:02:05]} 26. Nac4 {[%emt 0:00:51]} Bxd2 {[%emt 0:02:34]} 27. Nxd2 {[%emt 0:01:15]} Rxc1 {[%emt 0:01:26]} 28. Rxc1 {[%emt 0:00:03]} f5 {[%emt 0:01:47]} 29. Bb6 {[%emt 0:01:15]} 1-0

[Event "Biel Master Tournament 2019"]
[Site "Biel"]
[Date "2019.07.22"]
[Round "1.11"]
[White "Ludwig, Peter"]
[Black "Gopal G.N."]
[Result "0-1"]
[ECO "A38"]
[WhiteElo "2207"]
[BlackElo "2594"]
[Annotator "ChessBase"]
[PlyCount "57"]
[EventDate "2019.07.20"]
[EventType "swiss"]
[EventCountry "SUI"]
[SourceTitle "playchess.com"]
[Source "ChessBase"]
[SourceQuality "1"]
[TimeControl "40/5400+30:1800+30"]

1. Nf3 {[%emt 0:00:00]} c5 {[%emt 0:00:00]} 2. c4 {[%emt 0:00:13]} Nc6 {[%emt 0:00:14]} 3. Nc3 {[%emt 0:01:28]} Nf6 {[%emt 0:04:57]} 4. g3 {[%emt 0:02:12]} g6 {[%emt 0:01:35]} 5. Bg2 {[%emt 0:00:15]} d6 {[%emt 0:02:52]} 6. O-O {[%emt 0:01:21]} Bg7 {[%emt 0:00:04]} 7. a3 {[%emt 0:02:14]} O-O {[%emt 0:02:21]} 8. Rb1 {[%emt 0:00:06]} Bf5 {[%emt 0:05:37]} 9. d3 {[%emt 0:00:44]} Qd7 {[%emt 0:00:03]} 10. b4 {[%emt 0:01:28]} Rac8 {[%emt 0:18:36]} 11. bxc5 {[%emt 0:01:52]} dxc5 {[%emt 0:00:05]} 12. Nd5 {[%emt 0:06:04]} b6 {[%emt 0:10:58]} 13. Bb2 {[%emt 0:07:31]} Nxd5 {[%emt 0:00:33]} 14. cxd5 {[%emt 0:01:59]} Nd4 {[%emt 0:00:34]} 15. Nxd4 {[%emt 0:04:24]} cxd4 {[%emt 0:01:07]} 16. Qb3 {[%emt 0:16:26]} Rc5 {[%emt 0:08:56]} 17. Rfc1 {[%emt 0:03:18]} Rfc8 {[%emt 0:00:10]} 18. a4 {[%emt 0:07:32]} h5 {[%emt 0:13:44]} 19. h4 {[%emt 0:03:10]} Bg4 {[%emt 0:01:07]} 20. Kf1 {[%emt 0:01:02]} Bh3 {[%emt 0:02:17]} 21. Bxh3 {[%emt 0:08:58]} Qxh3+ {[%emt 0:02:08]} 22. Kg1 {[%emt 0:00:06]} g5 {[%emt 0:07:02]} 23. Rxc5 {[%emt 0:03:55]} Rxc5 {[%emt 0:00:04]} 24. hxg5 {[%emt 0:01:00]} h4 {[%emt 0:00:25]} 25. g6 {[%emt 0:05:21]} hxg3 {[%emt 0:00:19]} 26. gxf7+ {[%emt 0:00:09]} Kf8 {[%emt 0:01:01]} 27. fxg3 {[%emt 0:00:12]} Be5 {[%emt 0:02:09]} 28. Ba3 {[%emt 0:02:00]} Bxg3 {[%emt 0:00:25]} 29. Ra1 {[%emt 0:00:51]} 0-1

[Event "Biel Master Tournament 2019"]
[Site "Biel"]
[Date "2019.07.22"]
[Round "1.12"]
[White "Santos Latasa, Jaime"]
[Black "Baltic, Fatih"]
[Result "1/2-1/2"]
[ECO "A07"]
[WhiteElo "2594"]
[BlackElo "2203"]
[Annotator "ChessBase"]
[PlyCount "134"]
[EventDate "2019.07.20"]
[EventType "swiss"]
[EventCountry "SUI"]
[SourceTitle "playchess.com"]
[Source "ChessBase"]
[SourceQuality "1"]
[TimeControl "40/5400+30:1800+30"]

1. Nf3 {[%emt 0:04:41]} Nf6 {[%emt 0:00:00]} 2. g3 {[%emt 0:00:11]} d5 {[%emt 0:00:00]} 3. Bg2 {[%emt 0:00:05]} e6 {[%emt 0:01:16]} 4. O-O {[%emt 0:00:08]} a6 {[%emt 0:02:05]} 5. b3 {[%emt 0:02:47]} c5 {[%emt 0:01:56]} 6. c4 {[%emt 0:00:17]} Be7 {[%emt 0:02:51]} 7. cxd5 {[%emt 0:02:35]} Nxd5 {[%emt 0:00:16]} 8. Bb2 {[%emt 0:00:08]} O-O {[%emt 0:00:49]} 9. d4 {[%emt 0:00:38]} Nd7 {[%emt 0:07:13]} 10. e4 {[%emt 0:01:18]} N5f6 {[%emt 0:00:41]} 11. Nc3 {[%emt 0:00:30]} cxd4 {[%emt 0:03:46]} 12. Nxd4 {[%emt 0:00:44]} Ne5 {[%emt 0:03:16]} 13. Nce2 {[%emt 0:10:06]} Qb6 {[%emt 0:04:16]} 14. Qd2 {[%emt 0:07:49]} Rd8 {[%emt 0:10:01]} 15. Rad1 {[%emt 0:02:54]} Bd7 {[%emt 0:09:23]} 16. Bc3 {[%emt 0:02:16]} a5 {[%emt 0:04:35]} 17. Qb2 {[%emt 0:04:13]} a4 {[%emt 0:03:10]} 18. Rd2 {[%emt 0:07:18]} axb3 {[%emt 0:10:58]} 19. axb3 {[%emt 0:01:07]} Ba3 {[%emt 0:03:35]} 20. Qb1 {[%emt 0:00:25]} Bb4 {[%emt 0:01:21]} 21. Rfd1 {[%emt 0:00:44]} Be8 {[%emt 0:02:28]} 22. h3 {[%emt 0:02:34]} Nc6 {[%emt 0:10:58]} 23. Qb2 {[%emt 0:06:14]} Bxc3 {[%emt 0:05:13]} 24. Qxc3 {[%emt 0:00:34]} Nxd4 {[%emt 0:01:03]} 25. Nxd4 {[%emt 0:00:15]} Rac8 {[%emt 0:01:24]} 26. Qb2 {[%emt 0:00:23]} Nd7 {[%emt 0:00:50]} 27. Kh2 {[%emt 0:08:25]} f6 {[%emt 0:07:35]} 28. f4 {[%emt 0:01:14]} Bf7 {[%emt 0:01:11]} 29. b4 {[%emt 0:05:00]} Nf8 {[%emt 0:01:17]} 30. Nf3 {[%emt 0:00:24]} Rxd2 {[%emt 0:00:13]} 31. Rxd2 {[%emt 0:00:08]} Rc4 {[%emt 0:00:12]} 32. Rd4 {[%emt 0:00:07]} Rxd4 {[%emt 0:00:10]} 33. Nxd4 {[%emt 0:00:43]} Qc7 {[%emt 0:01:04]} 34. e5 {[%emt 0:01:01]} fxe5 {[%emt 0:00:04]} 35. Nb5 {[%emt 0:00:06]} Qc4 {[%emt 0:01:18]} 36. Nd6 {[%emt 0:00:10]} Qd4 {[%emt 0:01:00]} 37. Qxd4 {[%emt 0:00:08]} exd4 38. Bxb7 {[%emt 0:00:13]} Nd7 {[%emt 0:00:23]} 39. Kg2 {[%emt 0:00:29]} Kf8 {[%emt 0:00:22]} 40. Bc6 {[%emt 0:01:07]} Nb6 {[%emt 0:00:44]} 41. Nxf7 {[%emt 0:31:08]} Kxf7 {[%emt 0:30:01]} 42. Kf3 {[%emt 0:00:18]} Ke7 {[%emt 0:00:00]} 43. Ke4 {[%emt 0:00:00]} Kd6 {[%emt 0:00:00]} 44. b5 {[%emt 0:00:00]} Kc5 {[%emt 0:00:00]} 45. Ke5 {[%emt 0:00:00]} d3 {[%emt 0:00:00]} 46. Kxe6 {[%emt 0:00:00]} Kd4 {[%emt 0:00:00]} 47. Bf3 {[%emt 0:00:00]} Ke3 {[%emt 0:00:00]} 48. Bd1 {[%emt 0:00:00]} Kf2 {[%emt 0:00:00]} 49. Kf7 {[%emt 0:00:00]} g6 {[%emt 0:00:00]} 50. Kg7 {[%emt 0:00:00]} Kxg3 {[%emt 0:02:03]} 51. Kxh7 {[%emt 0:00:00]} Kxf4 {[%emt 0:00:39]} 52. Kxg6 {[%emt 0:00:00]} Kg3 {[%emt 0:00:48]} 53. Bg4 {[%emt 0:00:00]} Kh4 {[%emt 0:01:18]} 54. Kf5 {[%emt 0:00:00]} Nc4 {[%emt 0:01:16]} 55. Kf6 {[%emt 0:04:08]} d2 {[%emt 0:00:30]} 56. Ke6 {[%emt 0:00:49]} Kg3 {[%emt 0:00:19]} 57. Ke7 {[%emt 0:03:16]} Ne5 {[%emt 0:01:55]} 58. Bd1 {[%emt 0:00:46]} Nc4 {[%emt 0:00:18]} 59. Kd7 {[%emt 0:01:28]} Kxh3 {[%emt 0:00:20]} 60. Kc6 {[%emt 0:00:06]} Kg3 {[%emt 0:00:24]} 61. Kc5 {[%emt 0:00:25]} Na5 {[%emt 0:00:07]} 62. Kb4 {[%emt 0:00:56]} Nb7 {[%emt 0:00:04]} 63. Kc3 {[%emt 0:00:06]} Kf4 {[%emt 0:00:04]} 64. Kxd2 {[%emt 0:00:06]} Ke5 {[%emt 0:00:03]} 65. Kc3 {[%emt 0:00:08]} Kd6 {[%emt 0:00:24]} 66. Bf3 {[%emt 0:00:24]} Kc5 {[%emt 0:00:08]} 67. Bxb7 {[%emt 0:00:05]} Kxb5 {[%emt 0:00:03]} 1/2-1/2

[Event "Biel Master Tournament 2019"]
[Site "Biel"]
[Date "2019.07.22"]
[Round "1.13"]
[White "Misiano, Franco"]
[Black "Petrosyan, Manuel"]
[Result "0-1"]
[ECO "C36"]
[WhiteElo "2202"]
[BlackElo "2592"]
[Annotator "ChessBase"]
[PlyCount "160"]
[EventDate "2019.07.20"]
[EventType "swiss"]
[EventCountry "SUI"]
[SourceTitle "playchess.com"]
[Source "ChessBase"]
[SourceQuality "1"]
[TimeControl "40/5400+30:1800+30"]

1. e4 {[%emt 0:00:00]} e5 {[%emt 0:06:49]} 2. f4 {[%emt 0:00:42]} d5 {[%emt 0:01:51]} 3. exd5 {[%emt 0:00:09]} exf4 {[%emt 0:00:04]} 4. Nf3 {[%emt 0:01:05]} Nf6 {[%emt 0:00:09]} 5. Bb5+ {[%emt 0:00:24]} c6 {[%emt 0:00:36]} 6. dxc6 {[%emt 0:00:10]} Nxc6 {[%emt 0:00:12]} 7. d4 {[%emt 0:02:05]} Bd6 {[%emt 0:00:26]} 8. O-O {[%emt 0:03:10]} O-O {[%emt 0:00:06]} 9. c3 {[%emt 0:07:19]} Bg4 {[%emt 0:03:32]} 10. Nbd2 {[%emt 0:01:51]} Rc8 {[%emt 0:02:16]} 11. Bc4 {[%emt 0:08:08]} Ne7 {[%emt 0:07:20]} 12. h3 {[%emt 0:08:33]} Bh5 {[%emt 0:02:44]} 13. Bd3 {[%emt 0:00:51]} Ned5 {[%emt 0:04:17]} 14. Ne4 {[%emt 0:05:19]} Re8 {[%emt 0:05:37]} 15. Qc2 {[%emt 0:06:18]} Nxe4 {[%emt 0:06:30]} 16. Bxe4 {[%emt 0:00:05]} Bg6 {[%emt 0:00:04]} 17. Bxg6 {[%emt 0:01:08]} hxg6 {[%emt 0:00:09]} 18. Qb3 {[%emt 0:04:07]} Nb6 {[%emt 0:12:20]} 19. Ne5 {[%emt 0:07:40]} Bxe5 {[%emt 0:03:32]} 20. dxe5 {[%emt 0:00:04]} g5 {[%emt 0:02:28]} 21. h4 {[%emt 0:00:17]} Rc4 {[%emt 0:01:36]} 22. a4 {[%emt 0:02:56]} Qc7 {[%emt 0:04:56]} 23. hxg5 {[%emt 0:05:24]} Nd5 {[%emt 0:03:02]} 24. Bd2 {[%emt 0:05:44]} Rxe5 {[%emt 0:04:23]} 25. Rae1 {[%emt 0:03:52]} Qc5+ {[%emt 0:00:39]} 26. Rf2 {[%emt 0:01:18]} Rxe1+ {[%emt 0:01:27]} 27. Bxe1 {[%emt 0:00:06]} Re4 {[%emt 0:00:23]} 28. Qd1 {[%emt 0:01:03]} Re5 {[%emt 0:02:35]} 29. Bd2 {[%emt 0:03:54]} Rxg5 {[%emt 0:00:46]} 30. b4 {[%emt 0:01:35]} Qb6 {[%emt 0:08:03]} 31. a5 {[%emt 0:02:01]} Qh6 {[%emt 0:03:31]} 32. Bxf4 {[%emt 0:02:38]} Nxf4 {[%emt 0:00:40]} 33. Rxf4 {[%emt 0:00:53]} Rxg2+ {[%emt 0:00:16]} 34. Kxg2 {[%emt 0:00:07]} Qxf4 {[%emt 0:00:08]} 35. Qd8+ {[%emt 0:00:37]} Kh7 {[%emt 0:00:08]} 36. Qd5 {[%emt 0:01:38]} b6 {[%emt 0:03:23]} 37. axb6 {[%emt 0:06:21]} axb6 {[%emt 0:00:13]} 38. c4 {[%emt 0:00:18]} Qg4+ {[%emt 0:03:15]} 39. Kf2 {[%emt 0:01:37]} Kg6 {[%emt 0:02:29]} 40. Qc6+ {[%emt 0:05:08]} f6 {[%emt 0:00:50]} 41. Qxb6 {[%emt 0:32:19]} Qf4+ {[%emt 0:30:20]} 42. Kg2 {[%emt 0:00:24]} Qxc4 {[%emt 0:00:56]} 43. b5 {[%emt 0:00:12]} Qd5+ {[%emt 0:00:21]} 44. Kf2 {[%emt 0:00:09]} Kf5 {[%emt 0:00:07]} 45. Qb8 {[%emt 0:01:06]} Qd2+ {[%emt 0:00:43]} 46. Kf1 {[%emt 0:00:56]} Qc1+ {[%emt 0:00:34]} 47. Kf2 {[%emt 0:00:13]} Qc2+ {[%emt 0:00:28]} 48. Kf1 {[%emt 0:00:08]} Kg4 {[%emt 0:05:02]} 49. b6 {[%emt 0:00:52]} f5 {[%emt 0:00:07]} 50. Qc7 {[%emt 0:00:33]} Qb1+ {[%emt 0:01:14]} 51. Kf2 {[%emt 0:00:07]} Qb2+ {[%emt 0:00:06]} 52. Kf1 {[%emt 0:01:04]} Qb1+ {[%emt 0:01:36]} 53. Kf2 {[%emt 0:00:09]} Qb2+ {[%emt 0:00:07]} 54. Kf1 {[%emt 0:00:19]} f4 {[%emt 0:01:03]} 55. b7 {[%emt 0:01:32]} Qa1+ {[%emt 0:00:20]} 56. Kf2 {[%emt 0:00:48]} Qd4+ {[%emt 0:00:01]} 57. Kf1 {[%emt 0:00:10]} Qd1+ {[%emt 0:00:47]} 58. Kf2 {[%emt 0:00:05]} Qd2+ {[%emt 0:00:16]} 59. Kf1 {[%emt 0:00:06]} Kg3 {[%emt 0:01:05]} 60. Qxg7+ {[%emt 0:00:00]} Kf3 {[%emt 0:00:00]} 61. Qg4+ {[%emt 0:00:00]} Kxg4 {[%emt 0:00:00]} 62. b8=Q {[%emt 0:00:00]} Qd3+ {[%emt 0:00:00]} 63. Kf2 {[%emt 0:00:00]} Qd4+ {[%emt 0:00:00]} 64. Kf1 {[%emt 0:00:00]} Qc4+ {[%emt 0:00:00]} 65. Kf2 {[%emt 0:00:00]} Qa2+ {[%emt 0:00:00]} 66. Ke1 {[%emt 0:00:00]} Kg3 {[%emt 0:00:00]} 67. Qb6 {[%emt 0:00:00]} Qc2 {[%emt 0:00:00]} 68. Qg1+ {[%emt 0:00:00]} Qg2 {[%emt 0:00:00]} 69. Qd4 {[%emt 0:00:00]} Qh1+ {[%emt 0:00:00]} 70. Kd2 {[%emt 0:00:00]} Qf1 {[%emt 0:00:00]} 71. Qg7+ {[%emt 0:00:00]} Kh2 {[%emt 0:00:00]} 72. Qh6+ {[%emt 0:00:00]} Kg1 {[%emt 0:00:00]} 73. Qh5 {[%emt 0:02:04]} Qg2+ {[%emt 0:00:00]} 74. Kd3 {[%emt 0:02:21]} f3 {[%emt 0:00:00]} 75. Qc5+ {[%emt 0:00:52]} f2 {[%emt 0:00:00]} 76. Ke2 {[%emt 0:00:18]} Qe4+ {[%emt 0:00:00]} 77. Kd2 {[%emt 0:00:20]} Qe1+ {[%emt 0:00:00]} 78. Kd3 {[%emt 0:01:54]} Qd1+ {[%emt 0:00:00]} 79. Ke4 {[%emt 0:00:10]} Qg4+ {[%emt 0:00:00]} 80. Kd3 {[%emt 0:00:47]} Kg2 {[%emt 0:00:00] Kd4} 0-1